fUSD/lending_fUSD_20240625
["ID","MTS","AMOUNT","RATE_DAILY","PERIOD"]
[330358533,1719325636761,-1175.93905836,0.00022001,2]
[330358534,1719325636783,-256.2315395,0.00022065,2]
[330358535,1719325636804,-185.47736838,0.00022074,2]
[330358536,1719325636825,-380.88167048,0.00022091,2]
[330358537,1719325636845,-166.66666666,0.00022096,2]
[330358538,1719325636868,-846.82,0.00022164,2]
[330358539,1719325636890,-1054.68,0.00022164,2]
[330358540,1719325636912,-1055.32,0.00022164,2]
[330358541,1719325636933,-847.34,0.00022164,2]
[330358542,1719325636957,-300.0,0.00022164,2]
[330358543,1719325636982,-159.5,0.00022172,2]
[330358544,1719325637006,-1175.93905836,0.00022178,2]
[330358545,1719325637030,-48026.0,0.00022191,2]
[330358546,1719325637053,-154.28265748,0.00022205,2]
[330358547,1719325637076,-155.69335686,0.00022226,2]
[330358548,1719325637097,-155.177234,0.00022247,2]
[330358549,1719325637120,-1760.86453182,0.00022283,2]
[330358550,1719325637145,-190.29395068,0.00022292,2]
[330358551,1719325637167,-572.12138684,0.00022303,2]
[330358552,1719325637189,-9568.8169,0.00022304,2]
[330358553,1719325637211,-154.75344803,0.00022305,2]
[330358554,1719325637242,-1760.86453182,0.00022319,2]
[330358555,1719325637264,-1175.93905836,0.00022356,2]
[330358556,1719325637287,-185.47736838,0.00022474,2]
[330358557,1719325637540,-2096.12238549,0.0002248,2]
[330358558,1719325637572,-1760.86453182,0.00022508,2]
[330358559,1719325637595,-1760.86453182,0.00022511,2]
[330358560,1719325637615,-161.57778649,0.00022522,2]
[330358561,1719325637637,-1175.93905836,0.00022534,2]
[330358562,1719325637657,-155.0,0.00022538,2]
[330358563,1719325637678,-191.0715216,0.00022539,2]
[330358564,1719325637699,-1506.21,0.00022562,2]
[330358565,1719325637720,-154.30109746,0.00022602,2]
[330358566,1719325637741,-170.87896129,0.00022612,2]
[330358567,1719325637764,-212.80519448,0.00022624,2]
[330358568,1719325637785,-150.97304623,0.00022629,2]
[330358569,1719325637806,-892.5292248,0.00022662,2]
[330358570,1719325637826,-765.46761033,0.00022664,2]
[330358571,1719325637847,-4578.1594,0.00022664,2]
[330358572,1719325637870,-256.00974718,0.00022665,2]
[330358573,1719325637891,-202.35692159,0.0002268,2]
[330358574,1719325637912,-166.66666666,0.00022688,2]
[330358575,1719325637933,-500.0,0.00022691,2]
[330358576,1719325637954,-500.0,0.00022692,2]
[330358577,1719325637976,-200.0,0.00022692,2]
[330358578,1719325637997,-202.35692158,0.00022705,2]
[330358579,1719325638019,-1175.93905836,0.00022712,2]
[330358580,1719325638041,-202.35692158,0.0002273,2]
[330358581,1719325638062,-648.91907943,0.0002273,2]
[330358582,1719325638082,-256.00974718,0.00022734,2]
[330358583,1719325638106,-154.28265748,0.00022741,2]
[330358584,1719325638128,-173.83434328,0.00022745,2]
[330358585,1719325638151,-648.91907942,0.00022753,2]
[330358586,1719325638179,-202.35692158,0.00022755,2]
[330358587,1719325638201,-3653.81412104,0.00022764,2]
[330358588,1719325638223,-1000.0,0.00022764,2]
[330358589,1719325638247,-1000.0,0.00022764,2]
[330358590,1719325638268,-1000.0,0.00022764,2]
[330358591,1719325638290,-1000.0,0.00022764,2]
[330358592,1719325638312,-1000.0,0.00022764,2]
[330358593,1719325638336,-1000.0,0.00022764,2]
[330358594,1719325638358,-1000.0,0.00022764,2]
[330358595,1719325638380,-1000.0,0.00022764,2]
[330358596,1719325638401,-1000.0,0.00022764,2]
[330358597,1719325638422,-1000.0,0.00022764,2]
[330358598,1719325638444,-1000.0,0.00022764,2]
[330358599,1719325638465,-1000.0,0.00022764,2]
[330358600,1719325638486,-1000.0,0.00022764,2]
[330358601,1719325638508,-1000.0,0.00022764,2]
[330358602,1719325638530,-1000.0,0.00022764,2]
[330358603,1719325638552,-1000.0,0.00022764,2]
[330358604,1719325638573,-1000.0,0.00022764,2]
[330358605,1719325638595,-1000.0,0.00022764,2]
[330358606,1719325638619,-1000.0,0.00022764,2]
[330358607,1719325638641,-1000.0,0.00022764,2]
[330358608,1719325638664,-1000.0,0.00022764,2]
[330358609,1719325638686,-1000.0,0.00022764,2]
[330358610,1719325638707,-1000.0,0.00022764,2]
[330358611,1719325638730,-1000.0,0.00022764,2]
[330358612,1719325638762,-1000.0,0.00022764,2]
[330358613,1719325638792,-1000.0,0.00022764,2]
[330358614,1719325638814,-1000.0,0.00022764,2]
[330358615,1719325638836,-1000.0,0.00022764,2]
[330358616,1719325638860,-1000.0,0.00022764,2]
[330358617,1719325638884,-1000.0,0.00022764,2]
[330358618,1719325638908,-1000.0,0.00022764,2]
[330358619,1719325638929,-1000.0,0.00022764,2]
[330358620,1719325638951,-1000.0,0.00022764,2]
[330358621,1719325638973,-1000.0,0.00022764,2]
[330358622,1719325638995,-1000.0,0.00022764,2]
[330358623,1719325639018,-1000.0,0.00022764,2]
[330358624,1719325639041,-1000.0,0.00022764,2]
[330358625,1719325639063,-1000.0,0.00022764,2]
[330358626,1719325639086,-1000.0,0.00022764,2]
[330358627,1719325639108,-1000.0,0.00022764,2]
[330358628,1719325639132,-1000.0,0.00022764,2]
[330358629,1719325639159,-1000.0,0.00022764,2]
[330358630,1719325639182,-1000.0,0.00022764,2]
[330358631,1719325639206,-1000.0,0.00022764,2]
[330358632,1719325639230,-1000.0,0.00022764,2]
[330358633,1719325639255,-1000.0,0.00022764,2]
[330358634,1719325639277,-1000.0,0.00022764,2]
[330358635,1719325639299,-1000.0,0.00022764,2]
[330358636,1719325639323,-1000.0,0.00022764,2]
[330358637,1719325639345,-1000.0,0.00022764,2]
[330358638,1719325639367,-1000.0,0.00022764,2]
[330358639,1719325639390,-1000.0,0.00022764,2]
[330358640,1719325639414,-1000.0,0.00022764,2]
[330358641,1719325639436,-1000.0,0.00022764,2]
[330358642,1719325639459,-1000.0,0.00022764,2]
[330358643,1719325639482,-1000.0,0.00022764,2]
[330358644,1719325639511,-1000.0,0.00022764,2]
[330358645,1719325639535,-1000.0,0.00022764,2]
[330358646,1719325639558,-1000.0,0.00022764,2]
[330358647,1719325639582,-1000.0,0.00022764,2]
[330358648,1719325639605,-1000.0,0.00022764,2]
[330358649,1719325639630,-1000.0,0.00022764,2]
[330358650,1719325639655,-1000.0,0.00022764,2]
[330358651,1719325639678,-1000.0,0.00022764,2]
[330358652,1719325639702,-1000.0,0.00022764,2]
[330358653,1719325639726,-1000.0,0.00022764,2]
[330358654,1719325639749,-1000.0,0.00022764,2]
[330358655,1719325639772,-1000.0,0.00022764,2]
[330358656,1719325639795,-1000.0,0.00022764,2]
[330358657,1719325639820,-1000.0,0.00022764,2]
[330358658,1719325639846,-1000.0,0.00022764,2]
[330358659,1719325639872,-1000.0,0.00022764,2]
[330358660,1719325639895,-1000.0,0.00022764,2]
[330358661,1719325639919,-1000.0,0.00022764,2]
[330358662,1719325639942,-1000.0,0.00022764,2]
[330358663,1719325639967,-1000.0,0.00022764,2]
[330358664,1719325639991,-1000.0,0.00022764,2]
[330358665,1719325640015,-1000.0,0.00022764,2]
[330358666,1719325640039,-353.0,0.00022764,2]
[330358667,1719325640062,-151.92007356,0.00022767,2]
[330358668,1719325640085,-323.17968375,0.00022769,2]
[330358669,1719325640107,-184.29208948,0.00022774,2]
[330358670,1719325640128,-166.79469595,0.00022774,2]
[330358671,1719325640154,-648.91907942,0.00022776,2]
[330358672,1719325640181,-25000.0,0.0002278,2]
[330358673,1719325640210,-2712.48023409,0.0002278,2]
[330358674,1719325640234,-204.034,0.0002278,2]
[330358675,1719325640258,-1139.01203722,0.0002278,2]
[330358676,1719325694974,-250.0,0.00019178,2]
[330358679,1719325710186,-920.12,0.00021749,2]
[330358680,1719325710214,-250.0,0.00021826,2]
[330358681,1719325710240,-300.0,0.000219,7]
[330358682,1719325726103,1250.0,0.00021,2]
[330358683,1719325731809,150.0,0.00020589,2]
[330358684,1719325732002,150.0,0.00020649,4]
[330358685,1719325732082,150.0,0.00020709,4]
[330358686,1719325732570,150.0,0.0002077,4]
[330358687,1719325732692,150.0,0.0002083,4]
[330358688,1719325733061,150.0,0.0002089,4]
[330358689,1719325733383,150.0,0.0002095,4]
[330358690,1719325733789,150.0,0.0002101,4]
[330358691,1719325734229,150.0,0.00021071,4]
[330358692,1719325734567,150.0,0.00021131,4]
[330358693,1719325734910,150.0,0.00021191,4]
[330358694,1719325735252,150.0,0.00021251,4]
[330358695,1719325735578,150.0,0.00021311,4]
[330358696,1719325735938,150.0,0.00021372,4]
[330358697,1719325736286,150.0,0.00021432,4]
[330358698,1719325736678,150.0,0.00021492,4]
[330358699,1719325736954,150.0,0.00021552,4]
[330358700,1719325737902,23479.88,0.00019178,2]
[330358714,1719325833493,-3750.39163246,0.00019178,2]
[330358717,1719325833504,-183.83705592,0.00019178,2]
[330358719,1719325833515,-7158.3236483,0.00019178,2]
[330358720,1719325833526,-300.0,0.00019178,2]
[330358721,1719325833537,-155.0,0.00019178,2]
[330358722,1719325833546,-150.0,0.00021612,4]
[330358723,1719325833558,-150.0,0.00021673,4]
[330358724,1719325833568,-150.0,0.00021733,4]
[330358725,1719325833578,-150.0,0.00021793,4]
[330358727,1719325833587,-1345.25,0.00021793,2]
[330358729,1719325833597,-150.0,0.00021853,4]
[330358731,1719325833607,-150.0,0.00021913,4]
[330358733,1719325833616,-150.0,0.00021974,4]
[330358735,1719325833626,-700.0,0.00022,8]
[330358736,1719325833637,-150.0,0.00022034,4]
[330358737,1719325833647,-1000.0,0.0002207,2]
[330358738,1719325833656,-150.0,0.00022094,4]
[330358739,1719325833666,-1000.0,0.000221,8]
[330358740,1719325833676,-150.0,0.00022154,4]
[330358741,1719325833686,-1400.0,0.000222,8]
[330358742,1719325833699,-150.0,0.00022214,4]
[330358743,1719325833709,-150.0,0.00022275,4]
[330358744,1719325833718,-1800.0,0.000223,8]
[330358745,1719325833729,-150.0,0.00022335,4]
[330358746,1719325833739,-150.0,0.00022395,4]
[330358747,1719325833749,-300.0,0.000224,8]
[330358748,1719325833759,-3610.42591419,0.00022417,2]
[330358749,1719325833769,-150.0,0.00022455,4]
[330358750,1719325833779,-300.0,0.000225,8]
[330358751,1719325833789,-150.0,0.00022516,4]
[330358752,1719325833799,-150.0,0.00022576,4]
[330358753,1719325833810,-300.0,0.000226,8]
[330358754,1719325833820,-150.0,0.00022636,4]
[330358755,1719325833830,-155.42704866,0.00022636,2]
[330358756,1719325833840,-1729.10132,0.0002265,2]
[330358757,1719325833850,-21797.0314,0.0002268,2]
[330358758,1719325833860,-150.0,0.00022696,4]
[330358759,1719325833870,-300.0,0.000227,8]
[330358760,1719325833880,-839.92857098,0.00022707,3]
[330358761,1719325833890,-3610.42591419,0.00022746,2]
[330358762,1719325833899,-150.0,0.00022756,4]
[330358763,1719325833908,-202.35692158,0.00022774,2]
[330358764,1719325833919,-4520.20276278,0.0002278,2]
[330358765,1719325833930,-183.4990456,0.0002278,2]
[330358766,1719325833946,-970.21977767,0.00022782,2]
[330358767,1719325833956,-166.66666667,0.00022789,2]
[330358768,1719325833969,-4637.51791534,0.00022789,2]
[330358769,1719325833980,-975.04504316,0.0002279,2]
[330358770,1719325833990,-2712.48023407,0.0002279,2]
[330358771,1719325834000,-366.11090361,0.00022799,2]
[330358772,1719325834011,-2712.48023407,0.000228,2]
[330358773,1719325834021,-576.0,0.000228,5]
[330358774,1719325834031,-1000.0,0.000228,2]
[330358775,1719325834041,-900.0,0.000228,8]
[330358776,1719325834051,-251.69725193,0.00022804,2]
[330358777,1719325834061,-155.23951649,0.00022804,2]
[330358778,1719325834072,-1072.62009097,0.00022809,2]
[330358779,1719325834082,-243.24529927,0.00022809,2]
[330358780,1719325834092,-2712.48023407,0.0002281,2]
[330358781,1719325834105,-500.0,0.00022815,2]
[330358782,1719325834115,-155.0,0.00022816,2]
[330358784,1719325834126,-150.0,0.00022817,4]
[330358786,1719325834135,-955.73097325,0.00022819,2]
[330358788,1719325834145,-1262.77288771,0.00022819,2]
[330358789,1719325834154,-290.50492223,0.00022819,2]
[330358791,1719325834164,-155.29100335,0.00022819,2]
[330358792,1719325834174,-2712.48023407,0.0002282,2]
[330358793,1719325834184,-228.75267885,0.0002282,2]
[330358794,1719325834198,-155.0,0.0002282,2]
[330358795,1719325834208,-155.22419653,0.0002282,2]
[330358796,1719325834224,-158.25040673,0.0002282,2]
[330358797,1719325834234,-537.93879391,0.0002282,2]
[330358798,1719325834244,-491.56025274,0.0002282,2]
[330358799,1719325834255,-346.03148912,0.0002282,2]
[330358800,1719325834266,-202.10283086,0.0002282,2]
[330358801,1719325834276,-155.0,0.0002282,2]
[330358802,1719325834286,-155.33327027,0.0002282,2]
[330358803,1719325834298,-235.80110385,0.0002282,2]
[330358804,1719325834308,-155.14159365,0.00022821,2]
[330358805,1719325834319,-194.02066443,0.00022821,2]
[330358806,1719325834329,-155.14682893,0.00022821,2]
[330358807,1719325834340,-6739.59399904,0.00022821,2]
[330358808,1719325834646,-189.40554592,0.0002282,2]
[330358809,1719325834657,-2921.99726777,0.00022821,2]
[330358810,1719325834670,-300.0,0.00022821,2]
[330358811,1719325834682,-512.19400641,0.00022821,2]
[330358812,1719325834699,-307.975,0.00022821,2]
[330358813,1719325834712,-876.11960137,0.00022821,2]
[330358814,1719325834725,-13096.83668815,0.00022821,2]
[330358815,1719325834735,-155.0,0.00022821,2]
[330358816,1719325834745,-155.26295347,0.00022821,2]
[330358817,1719325834756,-1133.76952232,0.00022821,2]
[330358818,1719325834767,-305.26949333,0.00022821,2]
[330358819,1719325834778,-660.25476663,0.00022821,2]
[330358820,1719325834788,-213.1469346,0.00022821,2]
[330358821,1719325834799,-269.9716691,0.00022821,2]
[330358822,1719325834810,-218.40264018,0.00022821,2]
[330358823,1719325834820,-155.0,0.00022822,2]
[330358824,1719325834830,-202.44445,0.00022822,2]
[330358825,1719325834840,-5000.0,0.00022822,2]
[330358826,1719325834850,-194.29287538,0.00022822,2]
[330358827,1719325834860,-155.17524595,0.00022822,2]
[330358828,1719325834869,-527.81158355,0.00022822,2]
[330358829,1719325834879,-155.0,0.00022823,2]
[330358830,1719325834889,-2373.11184045,0.00022823,2]
[330358831,1719325834899,-155.0,0.00022823,2]
[330358832,1719325834909,-5593.62205483,0.00022824,2]
[330358833,1719325834919,-202.05047868,0.00022826,2]
[330358834,1719325834929,-2712.48023407,0.0002283,2]
[330358835,1719325834943,-2712.48023407,0.0002284,2]
[330358836,1719325834953,-2712.48023407,0.0002285,2]
[330358837,1719325834964,-2712.48023407,0.0002286,2]
[330358838,1719325834974,-193.16948895,0.0002286,2]
[330358839,1719325834984,-1000.0,0.00022869,2]
[330358840,1719325834994,-2712.48023407,0.0002287,2]
[330358841,1719325835004,-193.16948895,0.0002287,2]
[330358842,1719325835014,-347348.6268173,0.0002287,3]
[330358843,1719325835026,-55082.3298147,0.0002287,3]
[330358844,1719325835037,-25582.8999492,0.00022871,2]
[330358845,1719325835047,-71593.7506082,0.00022871,2]
[330358846,1719325835057,-20995.5497489,0.00022871,2]
[330358847,1719325835067,-747.9305244,0.00022871,2]
[330358848,1719325835077,-176.88202402,0.00022872,2]
[330358849,1719325835087,-185.47736838,0.00022873,2]
[330358850,1719325835097,-604.81432754,0.00022874,2]
[330358851,1719325835107,-17081.134345,0.00022874,2]
[330358852,1719325835116,-7609.692776,0.00022874,2]
[330358853,1719325835126,-1176.6064244,0.00022874,2]
[330358854,1719325835136,-201.39580508,0.00022874,2]
[330358855,1719325835145,-290.78783278,0.00022877,4]
[330358856,1719325835160,-183606.87939077,0.0002288,2]
[330358857,1719325835170,-295415.45695408,0.0002288,2]
[330358858,1719325835183,-4667.47387818,0.0002288,2]
[330358859,1719325835200,-1213.93749004,0.0002288,2]
[330358860,1719325835214,-334.61,0.0002288,2]
[330358861,1719325835226,-521.124372,0.0002288,2]
[330358862,1719325837716,-1414.1884564,0.0002288,2]
[330358863,1719325837769,-707.07731665,0.0002288,2]
[330358864,1719325837781,-629.99914214,0.0002288,2]
[330358865,1719325837793,-30873.0,0.0002288,2]
[330358923,1719325839542,-1114.78544724,0.00022417,2]
[330358924,1719325839552,-2103.90752411,0.00022814,2]
[330358925,1719325839565,-347.45730963,0.00022814,2]
[330358932,1719325840783,-1000.0,0.000228,2]
[330358933,1719325840794,-3470.90884912,0.00022814,2]
[330358934,1719325840807,-87.5443941,0.00022814,2]
[330358935,1719325840817,-379.4260091,0.00022819,2]
[330358936,1719325840827,-243.7625968,0.0002282,2]
[330358937,1719325840840,-250.39418971,0.0002282,2]
[330358938,1719325840852,-6942.96691601,0.0002282,2]
[330358939,1719325840863,-155.0,0.00022821,2]
[330358945,1719325841136,-196.12854204,0.00022821,2]
[330358946,1719325841153,-2373.11184045,0.00022821,2]
[330358947,1719325841163,-619.85957899,0.0002288,2]
[330358948,1719325841176,-1275.15327242,0.0002288,2]
[330358949,1719325841188,-4069.7644186,0.0002288,2]
[330358950,1719325841205,-5641.70032621,0.0002288,2]
[330358951,1719325841219,-27840.35780798,0.0002288,2]
[330358952,1719325841851,-7757.88693586,0.0002288,2]
[330358953,1719325841863,-7260.00000008,0.0002288,2]
[330358954,1719325841875,-902910.01092976,0.0002288,2]
[330358955,1719325841885,-22203.34937837,0.0002288,2]
[330358956,1719325841895,-2712.48023407,0.0002288,2]
[330358957,1719325841905,-156.087441,0.0002288,7]
[330358958,1719325841915,-440.2269,0.0002288,2]
[330358959,1719325841924,-151.0,0.0002288,7]
[330358960,1719325841936,-151.0,0.0002288,7]
[330358961,1719325841950,-151.0,0.0002288,7]
[330358962,1719325841960,-151.0,0.0002288,7]
[330358963,1719325841971,-151.0,0.0002288,7]
[330358964,1719325841980,-151.0,0.0002288,7]
[330358965,1719325841990,-151.0,0.0002288,7]
[330358966,1719325842000,-151.0,0.0002288,7]
[330358967,1719325842010,-151.0,0.0002288,7]
[330358968,1719325842020,-151.0,0.0002288,7]
[330358969,1719325842029,-157.170825,0.0002288,7]
[330358970,1719325842039,-152.549007,0.0002288,7]
[330358971,1719325842049,-11083.44830449,0.0002288,2]
[330358972,1719325842059,-151.0,0.0002288,7]
[330358973,1719325842069,-151.0,0.0002288,7]
[330358974,1719325842079,-151.0,0.0002288,7]
[330358975,1719325842088,-157.471795,0.0002288,7]
[330358976,1719325842098,-151.0,0.0002288,7]
[330358977,1719325842108,-151.0,0.0002288,7]
[330358978,1719325842118,-224.20764906,0.0002288,2]
[330358979,1719325842129,-151.0,0.0002288,7]
[330358980,1719325842140,-151.0,0.0002288,7]
[330358981,1719325842149,-1176.60642439,0.00022882,2]
[330358982,1719325842159,-1000.0,0.00022886,2]
[330358983,1719325842169,-10000.0,0.00022886,2]
[330358984,1719325842179,-216.78698398,0.0002289,2]
[330358985,1719325842189,-2712.48023407,0.0002289,2]
[330358986,1719325842202,-1175.93905836,0.0002289,2]
[330358987,1719325842213,-1176.60642439,0.0002289,2]
[330358988,1719325842227,-150.0,0.00022891,2]
[330358989,1719325842237,-32295.26813774,0.00022892,2]
[330358990,1719325842247,-6503.31930132,0.00022893,2]
[330358991,1719325842257,-2025.0,0.000229,2]
[330358992,1719325842268,-155.0,0.000229,2]
[330358993,1719325842278,-291.93341729,0.00022959,2]
[330358994,1719325842288,-206.0,0.0002296,2]
[330358995,1719325842300,-193.16948895,0.0002297,2]
[330358996,1719325842311,-172.121136,0.00022974,7]
[330358997,1719325842321,-151.0,0.00022974,7]
[330358998,1719325842336,-151.0,0.00022974,7]
[330358999,1719325842347,-259.190724,0.00022974,7]
[330359000,1719325842356,-13824.3838402,0.00022974,2]
[330359001,1719325842367,-10567.6333354,0.00022974,2]
[330359002,1719325842377,-7310.8828306,0.00022974,2]
[330359003,1719325842387,-4054.1323258,0.00022974,2]
[330359004,1719325842397,-797.381821,0.00022974,2]
[330359005,1719325842408,-151.0,0.00022974,7]
[330359006,1719325842418,-6187.3142328,0.00022974,2]
[330359007,1719325842427,-4764.9356896,0.00022974,2]
[330359008,1719325842438,-3342.5571464,0.00022974,2]
[330359009,1719325842455,-1920.1786033,0.00022974,2]
[330359010,1719325842478,-497.8000601,0.00022974,2]
[330359011,1719325842497,-20801.0291128,0.00022974,2]
[330359012,1719325842518,-16019.1582763,0.00022974,2]
[330359013,1719325842538,-11237.2874398,0.00022974,2]
[330359014,1719325842560,-6455.4166034,0.00022974,2]
[330359015,1719325842579,-1673.5457669,0.00022974,2]
[330359016,1719325842599,-272.392186,0.00022974,7]
[330359017,1719325842614,-272.392186,0.00022974,7]
[330359018,1719325842632,-58069.9828133,0.00022974,2]
[330359019,1719325842651,-44546.2150185,0.00022974,2]
[330359020,1719325842673,-31022.4472236,0.00022974,2]
[330359021,1719325842687,-17498.6794287,0.00022974,2]
[330359022,1719325842707,-3974.9116339,0.00022974,2]
[330359023,1719325842724,-17029.5759437,0.00022974,2]
[330359024,1719325842740,-13063.6021385,0.00022974,2]
[330359025,1719325842757,-9097.6283332,0.00022974,2]
[330359026,1719325842773,-5131.654528,0.00022974,2]
[330359027,1719325842797,-1165.6807228,0.00022974,2]
[330359028,1719325842813,-174.45125,0.00022974,7]
[330359029,1719325842829,-174.45125,0.00022974,7]
[330359030,1719325842845,-151.0,0.00022974,7]
[330359031,1719325842860,-747.9305244,0.00022974,2]
[330359032,1719325842876,-747.9305244,0.00022974,2]
[330359033,1719325842892,-747.9305244,0.00022974,2]
[330359034,1719325842907,-747.9305244,0.00022974,2]
[330359035,1719325842922,-747.9305244,0.00022974,2]
[330359036,1719325842937,-252.878491,0.00022974,7]
[330359037,1719325842963,-252.878491,0.00022974,7]
[330359038,1719325842979,-433.84531096,0.00022978,2]
[330359039,1719325842995,-2375.40634291,0.00022979,2]
[330359040,1719325843010,-831.0590105,0.00022979,2]
[330359041,1719325843026,-155.0,0.00022979,2]
[330359042,1719325843042,-242.99470657,0.00022979,2]
[330359043,1719325843058,-108842.48329217,0.0002298,2]
[330359046,1719325843074,-151.0,0.0002298,7]
[330359049,1719325843090,-625.2,0.00022985,2]
[330359054,1719325843106,-650.69302056,0.00022985,2]
[330359057,1719325843123,-625.2,0.00022985,2]
[330359060,1719325843139,-523.44090366,0.00022985,2]
[330359063,1719325843154,-168.42931208,0.00022985,2]
[330359066,1719325843169,-163.96244532,0.00022985,2]
[330359069,1719325843184,-650.69302056,0.00022985,2]
[330359072,1719325843202,-199.16467092,0.00022986,2]
[330359074,1719325843218,-339.46001548,0.00022986,2]
[330359077,1719325843236,-155.26964532,0.00022986,2]
[330359079,1719325843251,-283.44364674,0.00022986,2]
[330359082,1719325843269,-3967.2200595,0.00022986,2]
[330359084,1719325843285,-150.0,0.00022986,2]
[330359087,1719325843303,-150.0,0.00022986,2]
[330359091,1719325843321,-150.0,0.00022986,2]
[330359093,1719325843337,-150.0,0.00022986,2]
[330359096,1719325843354,-150.0,0.00022986,2]
[330359099,1719325843370,-150.0,0.00022986,2]
[330359101,1719325843387,-150.0,0.00022986,2]
[330359104,1719325843403,-150.0,0.00022986,2]
[330359106,1719325843419,-150.0,0.00022986,2]
[330359109,1719325843436,-461.29191155,0.00022987,2]
[330359112,1719325843455,-3637.80023536,0.00022987,2]
[330359114,1719325843470,-155.24712372,0.00022987,2]
[330359117,1719325843487,-284.85570489,0.00022987,2]
[330359119,1719325843504,-1415480.95151665,0.0002299,7]
[330359122,1719325843520,-353582.12062136,0.0002299,5]
[330359150,1719325843864,-403.2095517,0.00022879,2]
[330359152,1719325843880,-97938.63006699,0.0002299,5]
[330359155,1719325843898,-476.65834118,0.0002299,5]
[330359158,1719325843918,-1869.94826059,0.0002299,5]
[330359176,1719325845326,-1000.0,0.00019177,2]
[330359177,1719325845335,-570.14,0.00022821,2]
[330359178,1719325845345,-157.47341301,0.0002299,5]
[330359179,1719325845355,-1352.53160173,0.0002299,5]
[330359180,1719325845366,-288.512,0.0002299,5]
[330359181,1719325845378,-303615.91367088,0.0002299,5]
[330359182,1719325845389,-7300.0,0.0002299,5]
[330359183,1719325845400,-3432.88,0.0002299,5]
[330359184,1719325845546,-3103.21529152,0.0002299,5]
[330359196,1719325846219,-63744.34568542,0.0002299,5]
[330359206,1719325846524,-289.2423,0.0002299,5]
[330359207,1719325846536,-1701.9,0.0002299,5]
[330359208,1719325846548,-3081.52321808,0.0002299,5]
[330359209,1719325846560,-2426.74390075,0.0002299,5]
[330359211,1719325846746,-2841.01794751,0.0002299,5]
[330359215,1719326154624,-1237.03840068,0.0002389,20]
[330359216,1719326154647,-6062.96159932,0.00024,10]
[330359226,1719326680677,910.08,0.00018849,30]
[330359235,1719327032648,-288.78009237,0.000125,2]
[330359236,1719327032658,-186.97,0.0001399,3]
[330359237,1719327032669,-78.22139161,0.0001399,3]
[330359238,1719327032681,-482.68860839,0.0001399,3]
[330359240,1719327032691,-667.26274161,0.00014,2]
[330359242,1719327032702,-307.8334,0.00014,2]
[330359251,1719327033351,-1088.26645494,0.00014,2]
[330359252,1719327033364,-64297.10814068,0.00014,2]
[330359253,1719327033376,-376.28217556,0.00014,2]
[330359254,1719327033390,-595.5625,0.00014,2]
[330359255,1719327033402,-393.9,0.00014,2]
[330359257,1719327039099,-111212.30829205,0.00014,2]
[330359258,1719327039170,-345.0,0.00014,2]
[330359259,1719327039230,-3057.33651318,0.00014,2]
[330359260,1719327039242,-7646.57086215,0.00014,2]
[330359261,1719327039254,-498.87388707,0.00014,2]
[330359262,1719327039266,-3646.45277639,0.00014,2]
[330359263,1719327039279,-839.14109637,0.00014,2]
[330359264,1719327039296,-291.65817455,0.00014,2]
[330359265,1719327039342,-6701.11225904,0.00014,2]
[330359266,1719327039354,-2593.95245549,0.00014,2]
[330359267,1719327039366,-6360.9,0.00014,2]
[330359268,1719327039377,-346727.40915913,0.00014,2]
[330359269,1719327039460,-654.539,0.00014,2]
[330359271,1719327040866,-1370.79866426,0.00014,2]
[330359272,1719327040878,-511.695,0.00014,2]
[330359273,1719327041139,-1876.742,0.00014,2]
[330359274,1719327041150,-320.473,0.00014,2]
[330359278,1719327043999,-328.39001,0.00014,2]
[330359279,1719327044010,-695.38654256,0.00014,2]
[330359280,1719327044022,-15579.20194805,0.00014,2]
[330359281,1719327044034,-1270.64228968,0.00014,2]
[330359282,1719327044047,-63167.87851418,0.00014,2]
[330359283,1719327044277,-4686.47944893,0.00014,2]